bitfinex/quotes_SOLUSD_20251223
["timestamp","ask_amount","ask_price","bid_price","bid_amount"]
[1766470650969,10.43767296,124.65,124.64,7.41551365]
[1766470651365,19.1804404,124.65,124.57,18.46520839]
[1766470651567,0.72,124.64,124.6,7.41551365]
[1766470651755,8.13551365,124.64,124.54,20.07262884]
[1766470651960,11.15767296,124.6,124.54,0.71]
[1766470652275,10.43767296,124.6,124.54,0.71]
[1766470652458,0.72,124.59,124.49,0.71]
[1766470652659,10.43767296,124.58,124.49,0.71]
[1766470652868,11.15767296,124.58,124.5,0.71]
[1766470653068,0.72,124.58,124.53,0.71]
[1766470653402,10.43767296,124.59,124.54,0.71]
[1766470653590,0.72,124.58,124.51,14.66]
[1766470653762,0.72,124.58,124.52,0.71]
[1766470653964,11.15767296,124.6,124.52,0.71]
[1766470654281,11.15767296,124.57,124.5,0.71]
[1766470654484,10.43767296,124.61,124.54,0.71]
[1766470654787,10.43767296,124.59,124.57,7.41551365]
[1766470654965,0.72,124.6,124.55,0.71]
[1766470655361,0.72,124.6,124.56,7.41551365]
[1766470655761,0.72,124.59,124.53,0.71]
[1766470655963,0.72,124.59,124.54,0.72]
[1766470656189,18.4629853,124.61,124.52,0.72]
[1766470656387,0.69,124.6,124.55,0.66]
[1766470656604,8.71655337,124.59,124.56,7.41551365]
[1766470656761,18.46278839,124.61,124.54,0.66]
[1766470657073,11.12767296,124.61,124.59,7.41551365]
[1766470657271,0.69,124.64,124.6,7.41551365]
[1766470657479,0.69,124.64,124.58,0.66]
[1766470657788,0.69,124.64,124.54,10.43767296]
[1766470657789,15.35,124.66,124.61,0.66]
[1766470658088,0.69,124.65,124.62,7.41551365]
[1766470658481,0.69,124.65,124.61,0.66]
[1766470658789,0.69,124.65,124.64,7.41551365]
[1766470658991,25.09767296,124.66,124.63,7.41551365]
[1766470659198,25.09767296,124.66,124.54,16.56577296]
[1766470659199,0.69,124.62,124.54,20.07242241]
[1766470659493,0.69,124.62,124.58,7.41551365]
[1766470659694,0.69,124.6,124.52,0.66]
[1766470659871,0.69,124.57,124.52,0.66]
[1766470660073,0.69,124.56,124.48,0.66]
[1766470660291,0.69,124.55,124.49,0.66]
[1766470660498,0.69,124.54,124.49,0.66]
[1766470660791,25.09767296,124.58,124.53,0.66]
[1766470660992,14.66,124.65,124.54,0.66]
[1766470661170,10.43767296,124.6,124.54,0.66]
[1766470661366,0.69,124.61,124.54,0.66]
[1766470661568,10.43767296,124.62,124.57,0.66]
[1766470661789,15.35,124.63,124.6,7.41551365]
[1766470662094,14.66,124.64,124.62,7.41551365]
[1766470662273,14.66,124.64,124.63,7.41551365]
[1766470662467,6.1281,124.71,124.63,7.41551365]
[1766470662468,4.19084036,124.73,124.64,0.66]
[1766470662692,0.69,124.71,124.68,7.41551365]
[1766470662863,10.43767296,124.68,124.66,7.41551365]
[1766470663189,10.43767296,124.68,124.59,10.43767296]
[1766470663190,0.69,124.66,124.61,0.66]
[1766470663488,14.66,124.68,124.6,0.66]
[1766470663489,0.69,124.65,124.6,0.66]
[1766470663666,11.12767296,124.65,124.6,8.68567541]
[1766470663864,11.12767296,124.65,124.62,7.41551365]
[1766470664770,11.12767296,124.65,124.6,0.66]
[1766470664992,10.43767296,124.65,124.63,7.41551365]
[1766470665493,19.14898024,124.67,124.64,7.41551365]
[1766470665670,26.56449389,124.67,124.63,7.41551365]
[1766470665982,19.14898024,124.67,124.61,8.68500511]
[1766470666185,19.14898024,124.67,124.61,0.66]
[1766470666382,10.43767296,124.67,124.64,7.41551365]
[1766470666689,19.14890288,124.67,124.64,7.41551365]
[1766470666895,19.14890288,124.67,124.62,0.66]
[1766470667082,11.12767296,124.64,124.59,0.66]
[1766470667286,0.69,124.63,124.59,0.66]
[1766470667470,0.69,124.63,124.61,7.41551365]
[1766470668296,10.43767296,124.64,124.62,7.41551365]
[1766470668468,14.66,124.65,124.62,0.66]
[1766470668792,25.09767296,124.65,124.62,7.41551365]
[1766470669487,11.12767296,124.62,124.57,0.66]
[1766470669690,0.69,124.61,124.55,0.66]
[1766470669876,25.09767296,124.62,124.59,7.41551365]
[1766470670082,0.69,124.61,124.58,7.41551365]
[1766470670280,0.69,124.58,124.47,24.26394596]
[1766470670479,10.43767296,124.54,124.49,7.41551365]
[1766470670690,10.43767296,124.54,124.48,0.66]
[1766470670691,11.12767296,124.54,124.48,0.66]
[1766470671386,7.8428999,124.59,124.45,0.66]
[1766470671387,14.66,124.53,124.45,0.66]
[1766470671587,14.66,124.53,124.42,20.09319244]
[1766470671588,0.69,124.49,124.42,0.66]
[1766470671777,10.43767296,124.46,124.42,0.66]
[1766470672593,10.43767296,124.45,124.39,8.03921618]
[1766470672791,10.43767296,124.45,124.4,0.66]
[1766470672997,0.69,124.51,124.4,10.43767296]
[1766470673199,10.43767296,124.49,124.45,0.66]
[1766470673390,8.03146305,124.52,124.47,0.66]
[1766470673573,10.43767296,124.51,124.47,0.66]
[1766470674100,15.35,124.53,124.5,7.41551365]
[1766470674295,15.35,124.53,124.47,0.66]
[1766470674296,14.66,124.56,124.48,0.66]
[1766470674592,0.69,124.55,124.51,7.41551365]
[1766470674792,0.69,124.55,124.49,0.66]
[1766470675183,0.69,124.55,124.5,7.41551365]
[1766470675381,8.10551365,124.55,124.49,0.66]
[1766470675592,10.43767296,124.52,124.49,0.66]
[1766470675795,0.69,124.55,124.51,7.41551365]
[1766470676097,14.66,124.56,124.53,7.41551365]
[1766470676395,10.43767296,124.54,124.45,0.66]
[1766470676577,10.43767296,124.54,124.5,7.41551365]
[1766470676773,17.85318661,124.54,124.5,7.41551365]
[1766470676985,10.43767296,124.52,124.49,0.66]
[1766470677197,10.43767296,124.52,124.51,7.41551365]
[1766470677901,10.43767296,124.52,124.5,7.41551365]
[1766470678099,8.02756602,124.58,124.51,7.41551365]
[1766470678289,8.71813026,124.57,124.52,7.41551365]
[1766470678596,0.69,124.56,124.5,0.66]
[1766470678898,0.69,124.56,124.52,7.41551365]
[1766470678899,8.10551365,124.56,124.52,7.41551365]
[1766470679277,0.69,124.56,124.52,7.41551365]
[1766470679493,28.09716774,124.57,124.51,0.66]
[1766470679494,8.71813026,124.57,124.51,0.66]
[1766470679691,28.09716774,124.57,124.46,15.44963849]
[1766470679996,0.69,124.53,124.5,7.41551365]
[1766470680201,0.69,124.53,124.46,7.41551365]
[1766470680202,20.06584772,124.59,124.52,7.41551365]
[1766470680386,0.69,124.58,124.52,0.66]
[1766470680696,11.12767296,124.52,124.46,7.41551365]
[1766470680911,8.10551365,124.51,124.47,7.41551365]
[1766470681103,10.43767296,124.52,124.47,0.66]
[1766470681282,11.12767296,124.52,124.43,0.66]
[1766470681480,11.12767296,124.52,124.44,0.66]
[1766470681481,0.69,124.5,124.44,0.66]
[1766470681803,0.69,124.47,124.42,7.41551365]
[1766470681977,10.43767296,124.48,124.46,7.41551365]
[1766470682177,10.43767296,124.48,124.38,0.66]
[1766470682407,10.43767296,124.44,124.4,0.66]
[1766470682581,22.69728504,124.51,124.4,0.66]
[1766470682789,8.02697062,124.58,124.49,7.41551365]
[1766470682992,7.41551365,124.54,124.49,7.41551365]
[1766470683292,14.66,124.53,124.5,0.66]
[1766470683493,22.07551365,124.56,124.5,0.66]
[1766470683809,5.39642628,124.55,124.54,7.41551365]
[1766470684108,12.81193993,124.55,124.47,0.66]
[1766470684406,7.41551365,124.52,124.48,0.66]
[1766470684599,8.03033018,124.53,124.49,7.41551365]
[1766470684600,5.39642628,124.51,124.49,7.41551365]
[1766470684779,10.43767296,124.53,124.5,8.07551365]
[1766470684980,5.39940438,124.52,124.5,8.07551365]
[1766470685176,5.39940438,124.51,124.44,10.43767296]
[1766470685379,5.39940438,124.5,124.47,7.41551365]
[1766470685606,5.39940438,124.49,124.47,7.41551365]
[1766470685793,5.39940438,124.48,124.46,0.66]
[1766470685980,5.39940438,124.47,124.45,7.41551365]
[1766470686180,10.43767296,124.5,124.44,0.67]
[1766470686382,5.39619562,124.49,124.47,7.41551365]
[1766470686617,5.39619562,124.48,124.47,7.41551365]
[1766470686817,5.39619562,124.48,124.42,8.0367897]
[1766470687110,2.51619562,124.47,124.44,8.03594944]
[1766470687330,0.72,124.48,124.46,7.41551365]
[1766470687498,0.72,124.48,124.41,18.47552924]
[1766470687700,0.72,124.48,124.44,7.41551365]
[1766470687917,8.13551365,124.48,124.44,7.41551365]
[1766470688201,18.47235122,124.47,124.43,7.41551365]
[1766470688420,0.72,124.46,124.43,7.41551365]
[1766470688615,0.72,124.46,124.44,7.41551365]
[1766470688802,0.72,124.49,124.45,7.41551365]
[1766470689000,20.08356816,124.53,124.39,50.2126861]
[1766470689001,0.72,124.52,124.48,7.41551365]
[1766470689322,11.15767296,124.49,124.46,7.41551365]
[1766470689520,7.41551365,124.47,124.43,7.41551365]
[1766470689728,0.72,124.44,124.39,8.03909383]
[1766470690026,0.72,124.44,124.42,7.41551365]
[1766470690533,0.72,124.44,124.37,14.66]
[1766470690725,0.72,124.43,124.39,7.41551365]
[1766470690966,6.1281,124.5,124.33,40.21364007]
[1766470690967,7.41551365,124.53,124.41,7.41551365]
[1766470691110,0.72,124.49,124.42,8.0372349]
[1766470691303,0.72,124.49,124.45,7.41551365]
[1766470691725,0.72,124.46,124.43,7.41551365]
[1766470691926,0.72,124.46,124.41,7.41551365]
[1766470692225,15.4,124.47,124.44,7.41551365]
[1766470692424,0.72,124.47,124.44,7.41551365]
[1766470692618,0.72,124.45,124.37,18.47758809]
[1766470692812,0.72,124.45,124.42,7.41551365]
[1766470693010,0.72,124.45,124.36,10.43767296]
[1766470693201,0.72,124.43,124.36,8.04117079]
[1766470693404,0.72,124.43,124.4,7.41551365]
[1766470693600,0.72,124.43,124.36,8.04117079]
[1766470693830,0.72,124.43,124.4,7.41551365]
[1766470694032,0.72,124.43,124.35,22.72170548]
[1766470694333,8.75668859,124.43,124.4,12.1069585]
[1766470694833,0.72,124.43,124.4,12.1069585]
[1766470695034,0.72,124.43,124.35,42.8262491]
[1766470695229,0.72,124.42,124.35,22.72170548]
[1766470695430,12.1069585,124.42,124.35,14.68]
[1766470695735,12.1069585,124.42,124.32,8.0437269]
[1766470695736,0.72,124.4,124.32,8.0437269]
[1766470695941,0.72,124.38,124.35,12.1069585]
[1766470696156,0.72,124.38,124.32,12.1069585]
[1766470696313,0.72,124.38,124.31,4.40400571]
[1766470696516,0.72,124.37,124.34,12.1069585]
[1766470696711,0.72,124.46,124.36,12.1069585]
[1766470696930,0.72,124.43,124.39,12.1069585]
[1766470697111,0.72,124.42,124.32,12.1069585]
[1766470697317,12.8269585,124.4,124.35,12.1069585]
[1766470697520,12.8269585,124.4,124.31,42.99651652]
[1766470697521,0.72,124.4,124.32,12.1069585]
[1766470697720,15.4,124.42,124.32,12.1069585]
[1766470698022,15.4,124.42,124.31,42.99651652]
[1766470698023,15.4,124.42,124.33,14.68]
[1766470698230,12.1069585,124.4,124.31,42.99651652]
[1766470698482,15.4,124.43,124.37,8.04051058]
[1766470698648,0.72,124.43,124.4,12.1069585]
[1766470698928,0.72,124.46,124.41,12.1069585]
[1766470699122,0.72,124.45,124.41,12.1069585]
[1766470699335,0.72,124.45,124.42,12.1069585]
[1766470699545,0.72,124.45,124.39,12.1069585]
[1766470699848,0.72,124.45,124.43,12.1069585]
[1766470700017,12.1069585,124.53,124.39,12.1069585]
[1766470700018,0.72,124.53,124.44,12.1069585]
[1766470700224,0.72,124.48,124.44,12.1069585]
[1766470700930,0.72,124.51,124.47,12.1069585]
[1766470701322,0.72,124.53,124.48,12.1069585]
[1766470701543,20.07087988,124.56,124.5,12.1069585]
[1766470701544,0.72,124.55,124.5,12.1069585]
[1766470701720,0.72,124.55,124.52,12.1069585]
[1766470702049,0.72,124.57,124.53,12.1069585]
[1766470702236,0.72,124.64,124.56,12.1069585]
[1766470702442,0.72,124.64,124.58,12.1069585]
[1766470702443,0.72,124.62,124.58,12.1069585]
[1766470702623,0.72,124.62,124.59,12.1069585]
[1766470702826,0.72,124.59,124.55,12.1069585]
[1766470703037,12.1069585,124.57,124.5,8.03203089]
[1766470703238,14.68,124.61,124.5,8.03203089]
[1766470703239,0.72,124.56,124.5,8.03203089]
[1766470703546,0.72,124.56,124.52,12.1069585]
[1766470703845,0.72,124.54,124.47,14.68]
[1766470704050,12.1069585,124.54,124.47,8.03389873]
[1766470704244,0.72,124.53,124.49,12.1069585]
[1766470704448,10.43767296,124.54,124.44,34.76931136]
[1766470704622,12.1069585,124.5,124.45,12.1069585]
[1766470704829,0.72,124.49,124.46,12.1069585]
[1766470705154,11.15767296,124.52,124.48,12.1069585]
[1766470705320,11.15767296,124.54,124.44,42.80586777]
[1766470705524,0.72,124.53,124.49,12.1069585]
[1766470705826,0.72,124.53,124.44,42.80586777]
[1766470706027,0.72,124.52,124.48,12.1069585]
[1766470706243,0.72,124.52,124.46,12.1069585]
[1766470706442,12.8269585,124.55,124.5,12.1069585]
[1766470706626,0.72,124.55,124.51,12.1069585]
[1766470706827,0.72,124.55,124.49,12.1069585]
[1766470707023,8.02858104,124.56,124.48,12.1069585]
[1766470707024,0.72,124.53,124.48,12.1069585]
[1766470707237,0.72,124.53,124.5,12.1069585]
[1766470708151,0.72,124.58,124.52,12.1069585]
[1766470708326,0.72,124.58,124.5,8.0320331]
[1766470708327,0.72,124.58,124.54,12.1069585]
[1766470708528,0.72,124.58,124.5,20.08032128]
[1766470708841,33.14394616,124.6,124.56,12.1069585]
[1766470708842,0.72,124.6,124.56,12.1069585]
[1766470709326,0.72,124.63,124.58,12.1069585]
[1766470709532,0.72,124.62,124.54,28.10339914]
[1766470709742,25.11767296,124.64,124.54,28.10339914]
[1766470710048,12.8269585,124.6,124.53,8.03008878]
[1766470710353,0.72,124.6,124.55,12.1069585]
[1766470710534,0.72,124.59,124.55,12.1069585]
[1766470710735,0.72,124.59,124.53,8.03007091]
[1766470710736,0.72,124.59,124.56,12.1069585]
[1766470710937,0.72,124.59,124.55,12.1069585]
[1766470711331,12.8269585,124.59,124.5,10.43767296]
[1766470711536,12.8269585,124.58,124.53,12.1069585]
[1766470711748,12.1069585,124.57,124.49,14.68]
[1766470712049,0.69,124.53,124.48,12.1069585]
[1766470712252,0.69,124.53,124.49,12.1069585]
[1766470712457,10.43767296,124.55,124.51,12.1069585]
[1766470712646,11.12767296,124.55,124.5,12.1069585]
[1766470712848,11.12767296,124.55,124.51,12.1069585]
[1766470713034,11.12767296,124.55,124.5,12.1069585]
[1766470713360,23.23463146,124.55,124.5,12.1069585]
[1766470713562,23.23463146,124.55,124.47,28.11922551]
[1766470713563,0.69,124.54,124.49,12.1069585]
[1766470713748,0.69,124.54,124.5,12.1069585]
[1766470713933,0.69,124.54,124.47,28.11922551]
[1766470714140,0.69,124.54,124.49,12.1069585]
[1766470714557,8.02970956,124.54,124.46,8.03470994]
[1766470714740,8.02970956,124.54,124.47,12.1069585]
[1766470714741,12.7969585,124.53,124.47,12.1069585]
[1766470714945,0.69,124.53,124.48,12.1069585]
[1766470716752,0.71,124.52,124.46,26.7669585]
[1766470716963,12.8169585,124.52,124.46,26.7669585]
[1766470717334,8.03035388,124.53,124.48,12.1069585]
[1766470717335,12.1069585,124.53,124.48,12.1069585]
[1766470717541,12.1069585,124.52,124.47,12.1069585]
[1766470717743,12.28338904,124.52,124.46,26.94338904]
[1766470717943,12.99338904,124.53,124.48,8.03335294]
[1766470718142,0.71,124.51,124.46,22.69459804]
[1766470718350,12.28338904,124.53,124.47,12.28338904]
[1766470718537,12.28338904,124.53,124.46,26.94338904]
[1766470718741,0.71,124.52,124.46,34.9780404]
[1766470719137,0.71,124.52,124.46,22.69465136]
[1766470719344,12.28338904,124.53,124.47,12.28338904]
[1766470719746,0.71,124.53,124.47,12.28338904]
[1766470720368,12.99338904,124.53,124.47,12.28338904]
[1766470720554,0.71,124.53,124.47,12.28338904]
[1766470720741,0.71,124.53,124.47,10.23449962]
[1766470720943,30.50714148,124.57,124.47,10.23449962]
[1766470720944,20.06611122,124.59,124.51,10.23449962]
[1766470721144,10.23449962,124.57,124.51,10.23449962]
[1766470721346,0.71,124.58,124.52,10.23449962]
[1766470721553,8.02616366,124.6,124.54,10.23449962]
[1766470721554,0.71,124.6,124.54,10.23449962]
[1766470721864,10.94449962,124.59,124.53,10.23449962]
[1766470722063,0.71,124.59,124.54,10.23449962]
[1766470722276,10.23449962,124.57,124.5,25.09767296]
[1766470722458,10.23449962,124.57,124.51,10.23449962]
[1766470722459,0.71,124.56,124.51,10.23449962]
[1766470722765,0.71,124.56,124.5,25.09767296]
[1766470722766,10.23449962,124.55,124.5,14.66]
[1766470722966,0.71,124.54,124.49,18.26723818]
[1766470723499,0.71,124.54,124.49,10.23449962]
[1766470723665,10.43767296,124.59,124.5,10.23449962]
[1766470723865,10.43767296,124.59,124.52,10.23449962]
[1766470723866,0.71,124.57,124.52,10.23449962]
[1766470724062,0.71,124.57,124.53,10.23449962]
[1766470724245,0.71,124.57,124.52,10.23449962]
[1766470724982,0.71,124.57,124.51,22.69096592]
[1766470725196,0.71,124.54,124.48,8.03327193]
[1766470725379,0.71,124.54,124.49,24.89449962]
[1766470725573,0.71,124.54,124.5,10.23449962]
[1766470725766,0.71,124.54,124.51,10.23449962]
[1766470726168,0.71,124.54,124.49,22.6925857]
[1766470726384,0.71,124.54,124.49,24.72952114]
[1766470726881,0.71,124.54,124.5,10.06952114]
[1766470727087,0.71,124.54,124.5,24.72952114]
[1766470727266,0.71,124.54,124.5,32.76156437]
[1766470727461,8.7370768,124.58,124.51,10.06952114]
[1766470727680,10.77952114,124.57,124.52,10.06952114]
[1766470727880,10.77952114,124.55,124.5,24.72952114]
[1766470728067,10.77952114,124.55,124.5,10.06952114]
[1766470728279,0.71,124.55,124.5,24.72952114]
[1766470728467,0.71,124.55,124.5,32.76130927]
[1766470728868,0.71,124.54,124.5,10.06952114]
[1766470729076,18.09829497,124.56,124.5,24.72952114]
[1766470729286,0.71,124.58,124.5,22.69194349]
[1766470729580,10.43767296,124.59,124.51,10.06952114]
[1766470729581,10.06952114,124.57,124.51,10.06952114]
[1766470729785,0.71,124.56,124.51,10.06952114]
[1766470730092,0.71,124.56,124.5,8.03194349]
[1766470730393,0.71,124.56,124.52,10.06952114]
[1766470730968,8.73747877,124.58,124.53,10.06952114]
[1766470731168,0.71,124.57,124.53,10.06952114]
[1766470731362,0.71,124.57,124.52,10.06952114]
[1766470731789,0.71,124.57,124.53,10.06952114]
[1766470731976,28.53372679,124.59,124.54,10.06952114]
[1766470732172,0.71,124.58,124.54,10.06952114]
[1766470732381,0.71,124.61,124.56,10.06952114]
[1766470732587,0.71,124.61,124.57,10.06952114]
[1766470732791,0.71,124.61,124.57,24.72952114]
[1766470733488,0.71,124.63,124.59,10.06952114]
[1766470733681,0.71,124.63,124.58,10.06952114]
[1766470733903,0.71,124.62,124.58,10.06952114]
[1766470734214,10.77952114,124.63,124.56,8.02820522]
[1766470734498,8.02568218,124.6,124.49,40.1636937]
[1766470734696,8.02568218,124.6,124.54,10.06952114]
[1766470734697,0.71,124.58,124.54,10.06952114]
[1766470734989,0.71,124.58,124.54,14.66]
[1766470735194,0.71,124.58,124.53,10.06952114]
[1766470735195,10.77952114,124.58,124.53,10.06952114]
[1766470735373,0.71,124.57,124.53,14.66]
[1766470735562,0.71,124.57,124.53,24.72952114]
[1766470735889,0.71,124.57,124.53,10.06952114]
[1766470736071,0.71,124.57,124.53,24.72952114]
[1766470736673,0.71,124.57,124.54,10.06952114]
[1766470736878,0.71,124.59,124.56,10.06952114]
[1766470737096,10.43767296,124.6,124.56,10.06952114]
[1766470737302,0.71,124.61,124.56,24.72952114]
[1766470737487,0.71,124.61,124.53,38.17513307]
[1766470737668,0.71,124.61,124.57,10.06952114]
[1766470737993,0.71,124.61,124.57,14.66]
[1766470738193,0.71,124.6,124.53,28.10561193]
[1766470738387,0.71,124.6,124.56,10.06952114]
[1766470738601,21.2171941,124.62,124.57,10.06952114]
[1766470738774,0.71,124.61,124.57,24.72952114]
[1766470739089,0.71,124.63,124.58,10.06952114]
[1766470739286,10.43767296,124.62,124.59,10.06952114]
[1766470739594,21.2171941,124.62,124.54,10.43767296]
[1766470739770,21.2171941,124.62,124.57,10.06952114]
[1766470739969,11.14767296,124.62,124.56,14.66]
[1766470740164,11.14767296,124.62,124.54,10.43767296]
[1766470740165,0.71,124.59,124.54,10.43767296]
[1766470740379,18.80649176,124.58,124.53,10.06952114]
[1766470740668,18.80649176,124.58,124.47,14.16216443]
[1766470740669,0.71,124.56,124.48,6.1281]
[1766470740884,10.77952114,124.55,124.49,10.06952114]
[1766470741086,10.77952114,124.51,124.46,10.06952114]
[1766470741393,10.77952114,124.51,124.45,32.76481918]
[1766470741394,0.71,124.5,124.45,32.76481918]
[1766470741591,0.71,124.5,124.46,10.06952114]
[1766470741795,10.06952114,124.52,124.46,8.03457061]
[1766470741966,10.77952114,124.52,124.46,8.03457061]
[1766470742169,10.77952114,124.52,124.47,10.06952114]
[1766470742370,10.77952114,124.52,124.47,18.10357657]
[1766470742590,0.71,124.52,124.47,18.10357657]
[1766470742798,18.10037789,124.52,124.46,10.06952114]
[1766470742984,0.71,124.47,124.42,8.03676358]
[1766470743186,0.71,124.47,124.43,10.06952114]
[1766470743389,10.43767296,124.49,124.44,10.06952114]
[1766470743571,10.43767296,124.49,124.42,14.66]
[1766470743572,10.77952114,124.48,124.42,14.66]
[1766470743776,10.77952114,124.47,124.42,10.06952114]
[1766470744093,10.43767296,124.49,124.43,10.06952114]
[1766470744300,0.71,124.48,124.43,10.06952114]
[1766470744466,10.77952114,124.48,124.43,10.06952114]
[1766470744669,0.71,124.46,124.41,8.03777823]
[1766470744870,0.71,124.46,124.41,32.76743516]
[1766470745069,0.71,124.46,124.42,10.06952114]
[1766470746291,0.68,124.44,124.39,8.0386765]
[1766470746476,0.68,124.43,124.37,8.04039804]
[1766470746799,0.68,124.41,124.37,10.06952114]
[1766470747093,28.12625309,124.44,124.32,30.17764987]
[1766470747094,11.11767296,124.43,124.39,10.06952114]
[1766470747304,0.68,124.43,124.37,20.10005331]
[1766470747473,0.68,124.43,124.33,16.56577296]
[1766470747474,0.68,124.42,124.38,10.06952114]
[1766470747796,0.68,124.42,124.36,8.04106819]
[1766470747994,8.03606166,124.44,124.36,14.66]
[1766470747995,10.74952114,124.41,124.36,14.66]
[1766470748171,0.68,124.41,124.36,14.66]
[1766470748378,0.68,124.41,124.37,10.06952114]
[1766470748789,0.68,124.41,124.36,14.66]
[1766470748998,0.68,124.43,124.38,18.1092375]
[1766470749170,0.68,124.45,124.38,8.03971636]
[1766470749375,15.36,124.47,124.42,10.06952114]
[1766470749581,10.06952114,124.53,124.4,10.06952114]
[1766470749582,10.06952114,124.45,124.4,10.06952114]
[1766470749890,10.74952114,124.44,124.39,10.06952114]
[1766470750091,0.68,124.44,124.39,10.06952114]
[1766470750484,10.43767296,124.46,124.38,10.06952114]
[1766470750679,10.74952114,124.42,124.33,20.10617405]
[1766470750878,0.68,124.4,124.36,10.06952114]
[1766470751590,0.68,124.41,124.36,10.06952114]
[1766470751790,10.74952114,124.41,124.36,10.06952114]
[1766470751998,0.68,124.42,124.34,14.68]
[1766470752199,0.68,124.42,124.37,10.06952114]
[1766470752497,0.68,124.41,124.37,10.06952114]
[1766470752895,0.68,124.41,124.35,10.06952114]
[1766470752896,0.68,124.4,124.35,10.06952114]
[1766470753297,0.68,124.4,124.34,22.72229698]
[1766470753518,8.03736626,124.42,124.36,10.06952114]
[1766470753797,0.68,124.4,124.36,10.06952114]
[1766470754011,0.68,124.4,124.35,10.06952114]
[1766470754204,0.68,124.4,124.34,28.14856662]
[1766470754499,0.68,124.4,124.36,10.06952114]
[1766470754807,0.68,124.42,124.38,10.06952114]
[1766470754979,0.68,124.42,124.31,14.84167867]
[1766470755186,0.68,124.39,124.35,10.06952114]
[1766470755381,0.68,124.39,124.32,33.16089527]
[1766470755709,0.68,124.39,124.35,10.06952114]
[1766470756024,0.68,124.39,124.35,6.21248323]
[1766470756178,0.68,124.39,124.34,6.21248323]
[1766470756380,0.68,124.38,124.33,6.21248323]
[1766470756584,0.68,124.38,124.35,6.21248323]
[1766470756897,14.25056765,124.41,124.32,34.78784515]
[1766470757100,0.68,124.39,124.33,8.04292665]
[1766470757401,0.68,124.39,124.34,6.21248323]
[1766470757601,0.68,124.39,124.33,8.04292665]
[1766470757802,0.68,124.39,124.34,6.21248323]
[1766470758014,0.68,124.38,124.34,6.21248323]
[1766470758312,0.68,124.38,124.33,6.21248323]
[1766470758481,0.68,124.38,124.34,6.21248323]
[1766470758916,0.68,124.4,124.33,8.04311107]
[1766470759081,11.11767296,124.42,124.37,6.21248323]
[1766470759281,0.68,124.41,124.35,14.68]
[1766470759507,0.68,124.41,124.37,6.21248323]
[1766470759701,0.68,124.41,124.35,14.68]
[1766470759911,0.68,124.4,124.35,20.89248323]
[1766470760109,0.68,124.4,124.35,14.68]
[1766470760432,0.68,124.41,124.36,6.21248323]
[1766470760596,0.68,124.43,124.37,6.21248323]
[1766470760788,14.68,124.44,124.4,6.21248323]
[1766470761104,14.68,124.44,124.4,14.25100179]
[1766470761300,0.68,124.45,124.41,6.21248323]
[1766470761497,40.15452358,124.52,124.4,8.03851856]
[1766470761498,0.68,124.5,124.43,6.21248323]
[1766470761708,0.68,124.48,124.42,6.21248323]
[1766470761891,0.68,124.48,124.43,6.21248323]
[1766470762103,6.89248323,124.45,124.39,8.0386768]
[1766470762317,0.68,124.44,124.4,6.21248323]
[1766470762615,0.68,124.44,124.39,14.25161624]
[1766470762917,0.68,124.44,124.4,6.21248323]
[1766470763418,0.68,124.47,124.39,44.78736782]
[1766470763715,0.68,124.47,124.41,14.68]
[1766470763919,0.68,124.46,124.41,14.68]
[1766470764222,0.68,124.46,124.42,6.21248323]
[1766470764409,0.68,124.46,124.41,20.89248323]
[1766470765219,0.68,124.45,124.4,6.21248323]
[1766470765393,0.68,124.44,124.39,14.25155201]
[1766470765795,0.68,124.44,124.39,8.03906878]
[1766470765992,6.21248323,124.43,124.38,14.68]
[1766470766196,28.12160862,124.46,124.38,14.68]
[1766470766197,0.68,124.42,124.38,14.68]
[1766470766412,0.68,124.42,124.38,28.93224974]
[1766470766607,0.68,124.45,124.4,6.21248323]